Workbook

Sheet Лист1
A1: Школа | C1: МБОУ "СОШ №17" | F1: Утвердил: | G1: должность | H1: Директор
A2: Типовое примерное меню приготавливаемых блюд | G2: фамилия | H2: Н.В. Цепилова
A3: Возрастная категория | E3: 7-11 лет | G3: дата | H3: 9 | I3: 1 | J3: 2025
H4: день | I4: месяц | J4: год
A5: Неделя | B5: День недели | C5: Прием пищи | D5: Раздел меню | E5: Блюда | F5: Вес блюда, г | G5: Белки | H5: Жиры | I5: Углеводы | J5: Калорийность | K5: № рецептуры
A6: 1 | B6: 1 | C6: Завтрак | D6: гор.блюдо | E6: жаркое по-домашнему | F6: 230 | G6: 16.6 | H6: 5 | I6: 20.24 | J6: 423.77 | K6: 258
D7: гарнир
D8: гор.напиток | E8: Чай с сахаром | F8: 200 | G8: 0.12 | H8: 0.05 | I8: 16.26 | J8: 64.1 | K8: 430
D9: хлеб | E9: Хлеб пшеничный | F9: 40 | G9: 4.28 | H9: 1.8 | I9: 17.4 | J9: 109.6 | K9: 1
D10: фрукты
D11: закуска | E11: Салат из свёклы с огурцами солёными | F11: 60 | G11: 0.77 | H11: 3.18 | I11: 4.02 | J11: 48.16 | K11: 36
D12: хлеб | E12: Хлеб ржаной | F12: 15 | G12: 0.85 | H12: 0.33 | I12: 4.83 | J12: 25.9 | K12: 1
D13: итого | F13: =SUM(F6:F12) -> 545 | G13: =SUM(G6:G12) -> 22.62 | H13: =SUM(H6:H12) -> 10.36 | I13: =SUM(I6:I12) -> 62.75 | J13: =SUM(J6:J12) -> 671.53
A14: =A6 -> 1 | B14: =B6 -> 1 | C14: Обед | D14: закуска
D15: 1 блюдо
D16: 2 блюдо
D17: гарнир
D18: напиток
D19: хлеб бел.
D20: хлеб черн.
D23: итого | F23: =SUM(F14:F22) -> 0 | G23: =SUM(G14:G22) -> 0 | H23: =SUM(H14:H22) -> 0 | I23: =SUM(I14:I22) -> 0 | J23: =SUM(J14:J22) -> 0
A24: =A6 -> 1 | B24: =B6 -> 1 | C24: Итого за день: | F24: =F13+F23 -> 545 | G24: =G13+G23 -> 22.62 | H24: =H13+H23 -> 10.36 | I24: =I13+I23 -> 62.75 | J24: =J13+J23 -> 671.53
A25: 1 | B25: 2 | C25: Завтрак | D25: гор.блюдо | E25: Рыба тушёная в томате с овощами | F25: 100 | G25: 22.39 | H25: 2.99 | I25: 5.11 | J25: 135.68 | K25: 231
D26: гарнир | E26: Рис отварной | F26: 150 | G26: 3.33 | H26: 2.68 | I26: 33.69 | J26: 172.17 | K26: 325
D27: гор.напиток | E27: Кисель с витаминами"Витошка" | F27: 200 | G27: 0 | H27: 0 | I27: 23.5 | J27: 95 | K27: 73
D28: хлеб | E28: Хлеб пшеничный | F28: 40 | G28: 4.28 | H28: 1.8 | I28: 17.4 | J28: 109.6 | K28: 1
D29: фрукты
D30: закуска | E30: Огурец свежий | F30: 60 | G30: 0 | H30: 0.06 | I30: 1.8 | J30: 9.65 | K30: 22
D31: хлеб | E31: Хлеб ржаной | F31: 15 | G31: 0.85 | H31: 0.33 | I31: 4.83 | J31: 25.9 | K31: 1
D32: итого | F32: =SUM(F25:F31) -> 565 | G32: =SUM(G25:G31) -> 30.85 | H32: =SUM(H25:H31) -> 7.86 | I32: =SUM(I25:I31) -> 86.33 | J32: =SUM(J25:J31) -> 548
A33: =A25 -> 1 | B33: =B25 -> 2 | C33: Обед | D33: закуска
D34: 1 блюдо
D35: 2 блюдо
D36: гарнир
D37: напиток
D38: хлеб бел.
D39: хлеб черн.
D42: итого | F42: =SUM(F33:F41) -> 0 | G42: =SUM(G33:G41) -> 0 | H42: =SUM(H33:H41) -> 0 | I42: =SUM(I33:I41) -> 0 | J42: =SUM(J33:J41) -> 0
A43: =A25 -> 1 | B43: =B25 -> 2 | C43: Итого за день: | F43: =F32+F42 -> 565 | G43: =G32+G42 -> 30.85 | H43: =H32+H42 -> 7.86 | I43: =I32+I42 -> 86.33 | J43: =J32+J42 -> 548
A44: 1 | B44: 3 | C44: Завтрак | D44: гор.блюдо | E44: Биточки рубленные из птиц паровые | F44: 100 | G44: 27.84 | H44: 24.03 | I44: 9.87 | J44: 367.22 | K44: 315
D45: гарнир | E45: Макаронные изделия отварные | F45: 150 | G45: 4.66 | H45: 2.41 | I45: 28.93 | J45: 156.19 | K45: 331
D46: гор.напиток | E46: Напиток апельсиновый или лимонный | F46: 200 | G46: 0.18 | H46: 0.05 | I46: 16.7 | J46: 65.99 | K46: 295
D47: хлеб | E47: Хлеб пшеничный | F47: 40 | G47: 4.28 | H47: 1.8 | I47: 17.4 | J47: 109.6 | K47: 1
D48: фрукты
D49: закуска | E49: Салат из свежих помидоров | F49: 60 | G49: 0.69 | H49: 3.29 | I49: 2.84 | J49: 43.65 | K49: 22
D50: хлеб | E50: Хлеб ржаной | F50: 15 | G50: 0.85 | H50: 0.33 | I50: 4.83 | J50: 25.9 | K50: 1
D51: итого | F51: =SUM(F44:F50) -> 565 | G51: =SUM(G44:G50) -> 38.5 | H51: =SUM(H44:H50) -> 31.91 | I51: =SUM(I44:I50) -> 80.57 | J51: =SUM(J44:J50) -> 768.55
A52: =A44 -> 1 | B52: =B44 -> 3 | C52: Обед | D52: закуска
D53: 1 блюдо
D54: 2 блюдо
D55: гарнир
D56: напиток
D57: хлеб бел.
D58: хлеб черн.
D61: итого | F61: =SUM(F52:F60) -> 0 | G61: =SUM(G52:G60) -> 0 | H61: =SUM(H52:H60) -> 0 | I61: =SUM(I52:I60) -> 0 | J61: =SUM(J52:J60) -> 0
A62: =A44 -> 1 | B62: =B44 -> 3 | C62: Итого за день: | F62: =F51+F61 -> 565 | G62: =G51+G61 -> 38.5 | H62: =H51+H61 -> 31.91 | I62: =I51+I61 -> 80.57 | J62: =J51+J61 -> 768.55
A63: 1 | B63: 4 | C63: Завтрак | D63: гор.блюдо | E63: Птица тушёная в сметанном соусе | F63: 100 | G63: 25.2 | H63: 22.69 | I63: 6.49 | J63: 328.3 | K63: 312
D64: гарнир | E64: Каша гречневая рассыпчатая | F64: 150 | G64: 5.7 | H64: 4.26 | I64: 25.01 | J64: 161.26 | K64: 323
D65: гор.напиток | E65: Компот из свежих яблок | F65: 200 | G65: 0.12 | H65: 0.12 | I65: 16.26 | J65: 73.61 | K65: 372
D66: хлеб | E66: Хлеб пшеничный | F66: 40 | G66: 4.28 | H66: 1.8 | I66: 17.4 | J66: 109.6 | K66: 1
D67: фрукты
D68: закуска | E68: Винегрет | F68: 60 | G68: 1.25 | H68: 4.57 | I68: 7.26 | J68: 76.04 | K68: 60
D69: хлеб | E69: Хлеб ржаной | F69: 15 | G69: 0.85 | H69: 0.33 | I69: 4.83 | J69: 25.9 | K69: 1
D70: итого | F70: =SUM(F63:F69) -> 565 | G70: =SUM(G63:G69) -> 37.4 | H70: =SUM(H63:H69) -> 33.77 | I70: =SUM(I63:I69) -> 77.25 | J70: =SUM(J63:J69) -> 774.71
A71: =A63 -> 1 | B71: =B63 -> 4 | C71: Обед | D71: закуска
D72: 1 блюдо
D73: 2 блюдо
D74: гарнир
D75: напиток
D76: хлеб бел.
D77: хлеб черн.
D80: итого | F80: =SUM(F71:F79) -> 0 | G80: =SUM(G71:G79) -> 0 | H80: =SUM(H71:H79) -> 0 | I80: =SUM(I71:I79) -> 0 | J80: =SUM(J71:J79) -> 0
A81: =A63 -> 1 | B81: =B63 -> 4 | C81: Итого за день: | F81: =F70+F80 -> 565 | G81: =G70+G80 -> 37.4 | H81: =H70+H80 -> 33.77 | I81: =I70+I80 -> 77.25 | J81: =J70+J80 -> 774.71
A82: 1 | B82: 5 | C82: Завтрак | D82: гор.блюдо | E82: Запеканка картофельная фаршированная отварным мясом кур с овощами | F82: 200 | G82: 28.06 | H82: 21.73 | I82: 36.9 | J82: 451.09 | K82: 6
D83: гарнир
D84: гор.напиток | E84: Чай с сахаром | F84: 200 | G84: 0.19 | H84: 0.05 | I84: 16.26 | J84: 64.1 | K84: 430
D85: хлеб | E85: Хлеб пшеничный | F85: 40 | G85: 4.28 | H85: 1.8 | I85: 17.4 | J85: 109.6 | K85: 1
D86: фрукты
D87: закуска | E87: Салат витаминный из белокачанной капусты с яблоками | F87: 60 | G87: 0.8 | H87: 2.74 | I87: 4.57 | J87: 50.26 | K87: 30
D88: хлеб | E88: Хлеб ржаной | F88: 15 | G88: 0.85 | H88: 0.33 | I88: 4.83 | J88: 25.9 | K88: 1
D89: итого | F89: =SUM(F82:F88) -> 515 | G89: =SUM(G82:G88) -> 34.18 | H89: =SUM(H82:H88) -> 26.65 | I89: =SUM(I82:I88) -> 79.96 | J89: =SUM(J82:J88) -> 700.95
A90: =A82 -> 1 | B90: =B82 -> 5 | C90: Обед | D90: закуска
D91: 1 блюдо
D92: 2 блюдо
D93: гарнир
D94: напиток
D95: хлеб бел.
D96: хлеб черн.
D99: итого | F99: =SUM(F90:F98) -> 0 | G99: =SUM(G90:G98) -> 0 | H99: =SUM(H90:H98) -> 0 | I99: =SUM(I90:I98) -> 0 | J99: =SUM(J90:J98) -> 0
A100: =A82 -> 1 | B100: =B82 -> 5 | C100: Итого за день: | F100: =F89+F99 -> 515 | G100: =G89+G99 -> 34.18 | H100: =H89+H99 -> 26.65 | I100: =I89+I99 -> 79.96 | J100: =J89+J99 -> 700.95
A101: 2 | B101: 6 | C101: Завтрак | D101: гор.блюдо | E101: Суфле из рыбы | F101: 100 | G101: 19.8 | H101: 12.49 | I101: 3.52 | J101: 205.87 | K101: 238
D102: гарнир | E102: Макаронные изделия отварные | F102: 150 | G102: 4.66 | H102: 2.41 | I102: 28.93 | J102: 156.19 | K102: 331
D103: гор.напиток | E103: Напиток апельсиновый или лимонный | F103: 200 | G103: 0.18 | H103: 0.05 | I103: 16.7 | J103: 65.99 | K103: 295
D104: хлеб | E104: Хлеб пшеничный | F104: 40 | G104: 4.28 | H104: 1.8 | I104: 17.4 | J104: 109.6 | K104: 1
D105: фрукты
D106: закуска | E106: Салат "Нежный" | F106: 60 | G106: 0.85 | H106: 8.11 | I106: 3 | J106: 97.62 | K106: 31
D107: хлеб | E107: Хлеб ржаной | F107: 15 | G107: 0.85 | H107: 0.33 | I107: 4.83 | J107: 25.9 | K107: 1
D108: итого | F108: =SUM(F101:F107) -> 565 | G108: =SUM(G101:G107) -> 30.62 | H108: =SUM(H101:H107) -> 25.19 | I108: =SUM(I101:I107) -> 74.38 | J108: =SUM(J101:J107) -> 661.17
A109: =A101 -> 2 | B109: =B101 -> 6 | C109: Обед | D109: закуска
D110: 1 блюдо
D111: 2 блюдо
D112: гарнир
D113: напиток
D114: хлеб бел.
D115: хлеб черн.
D118: итого | F118: =SUM(F109:F117) -> 0 | G118: =SUM(G109:G117) -> 0 | H118: =SUM(H109:H117) -> 0 | I118: =SUM(I109:I117) -> 0 | J118: =SUM(J109:J117) -> 0
A119: =A101 -> 2 | B119: =B101 -> 6 | C119: Итого за день: | F119: =F108+F118 -> 565 | G119: =G108+G118 -> 30.62 | H119: =H108+H118 -> 25.19 | I119: =I108+I118 -> 74.38 | J119: =J108+J118 -> 661.17
A120: 2 | B120: 7 | C120: Завтрак | D120: гор.блюдо | E120: Каша перловая с мясом и овощами | F120: 200 | G120: 12.56 | H120: 20.17 | I120: 22.76 | J120: 321.71 | K120: 200
D121: гарнир
D122: гор.напиток | E122: Кисель с витаминами"Витошка" | F122: 200 | G122: 0 | H122: 0 | I122: 23.5 | J122: 95 | K122: 73
D123: хлеб | E123: Хлеб пшеничный | F123: 40 | G123: 4.28 | H123: 1.8 | I123: 17.4 | J123: 109.6 | K123: 1
D124: фрукты
D125: закуска | E125: Помидор свежий | F125: 60 | G125: 0.63 | H125: 0.13 | I125: 2.22 | J125: 12.43 | K125: 19
D126: хлеб | E126: Хлеб ржаной | F126: 15 | G126: 0.85 | H126: 0.33 | I126: 4.83 | J126: 25.9 | K126: 1
D127: итого | F127: =SUM(F120:F126) -> 515 | G127: =SUM(G120:G126) -> 18.32 | H127: =SUM(H120:H126) -> 22.43 | I127: =SUM(I120:I126) -> 70.71 | J127: =SUM(J120:J126) -> 564.64
A128: =A120 -> 2 | B128: =B120 -> 7 | C128: Обед | D128: закуска
D129: 1 блюдо
D130: 2 блюдо
D131: гарнир
D132: напиток
D133: хлеб бел.
D134: хлеб черн.
D137: итого | F137: =SUM(F128:F136) -> 0 | G137: =SUM(G128:G136) -> 0 | H137: =SUM(H128:H136) -> 0 | I137: =SUM(I128:I136) -> 0 | J137: =SUM(J128:J136) -> 0
A138: =A120 -> 2 | B138: =B120 -> 7 | C138: Итого за день: | F138: =F127+F137 -> 515 | G138: =G127+G137 -> 18.32 | H138: =H127+H137 -> 22.43 | I138: =I127+I137 -> 70.71 | J138: =J127+J137 -> 564.64
A139: 2 | B139: 8 | C139: Завтрак | D139: гор.блюдо | E139: Биточки рубленные из птиц паровые | F139: 100 | G139: 22.38 | H139: 19.32 | I139: 7.9 | J139: 295.07 | K139: 315
D140: гарнир | E140: Картофель запечённый в молочном соусе | F140: 150 | G140: 5.16 | H140: 5.3 | I140: 26.68 | J140: 174.44 | K140: 211
D141: гор.напиток | E141: Чай с лимоном | F141: 200 | G141: 0.17 | H141: 0.03 | I141: 13.23 | J141: 52.26 | K141: 393
D142: хлеб | E142: Хлеб пшеничный | F142: 40 | G142: 4.28 | H142: 1.8 | I142: 17.4 | J142: 109.6 | K142: 1
D143: фрукты
D144: закуска | E144: Салат из свежих огурцов | F144: 60 | G144: 0 | H144: 3.23 | I144: 1.92 | J144: 38.74 | K144: 19
D145: хлеб | E145: Хлеб ржаной | F145: 15 | G145: 0.85 | H145: 0.33 | I145: 4.83 | J145: 25.9 | K145: 1
D146: итого | F146: =SUM(F139:F145) -> 565 | G146: =SUM(G139:G145) -> 32.84 | H146: =SUM(H139:H145) -> 30.01 | I146: =SUM(I139:I145) -> 71.96 | J146: =SUM(J139:J145) -> 696.01
A147: =A139 -> 2 | B147: =B139 -> 8 | C147: Обед | D147: закуска
D148: 1 блюдо
D149: 2 блюдо
D150: гарнир
D151: напиток
D152: хлеб бел.
D153: хлеб черн.
D156: итого | F156: =SUM(F147:F155) -> 0 | G156: =SUM(G147:G155) -> 0 | H156: =SUM(H147:H155) -> 0 | I156: =SUM(I147:I155) -> 0 | J156: =SUM(J147:J155) -> 0
A157: =A139 -> 2 | B157: =B139 -> 8 | C157: Итого за день: | F157: =F146+F156 -> 565 | G157: =G146+G156 -> 32.84 | H157: =H146+H156 -> 30.01 | I157: =I146+I156 -> 71.96 | J157: =J146+J156 -> 696.01
A158: 2 | B158: 9 | C158: Завтрак | D158: гор.блюдо | E158: Плов из мяса птицы | F158: 230 | G158: 26.58 | H158: 24.03 | I158: 36.91 | J158: 467.91 | K158: 304
D159: гарнир
D160: гор.напиток | E160: Компот из свежих яблок | F160: 200 | G160: 0.12 | H160: 0.12 | I160: 16.26 | J160: 73.61 | K160: 372
D161: хлеб | E161: Хлеб пшеничный | F161: 40 | G161: 4.28 | H161: 1.8 | I161: 17.4 | J161: 109.6 | K161: 1
D162: фрукты
D163: закуска | E163: Салат из белокачанной капусты | F163: 60 | G163: 1.11 | H163: 2.7 | I163: 6.07 | J163: 52.56 | K163: 35
D164: хлеб | E164: Хлеб ржаной | F164: 15 | G164: 0.85 | H164: 0.33 | I164: 4.83 | J164: 25.9 | K164: 1
D165: итого | F165: =SUM(F158:F164) -> 545 | G165: =SUM(G158:G164) -> 32.94 | H165: =SUM(H158:H164) -> 28.98 | I165: =SUM(I158:I164) -> 81.47 | J165: =SUM(J158:J164) -> 729.58
A166: =A158 -> 2 | B166: =B158 -> 9 | C166: Обед | D166: закуска
D167: 1 блюдо
D168: 2 блюдо
D169: гарнир
D170: напиток
D171: хлеб бел.
D172: хлеб черн.
D175: итого | F175: =SUM(F166:F174) -> 0 | G175: =SUM(G166:G174) -> 0 | H175: =SUM(H166:H174) -> 0 | I175: =SUM(I166:I174) -> 0 | J175: =SUM(J166:J174) -> 0
A176: =A158 -> 2 | B176: =B158 -> 9 | C176: Итого за день: | F176: =F165+F175 -> 545 | G176: =G165+G175 -> 32.94 | H176: =H165+H175 -> 28.98 | I176: =I165+I175 -> 81.47 | J176: =J165+J175 -> 729.58
A177: 2 | B177: 10 | C177: Завтрак | D177: гор.блюдо | E177: Котлета рубленная из мяса | F177: 100 | G177: 12.27 | H177: 21.63 | I177: 15.27 | J177: 304.69 | K177: 272
D178: гарнир | E178: Каша гречневая рассыпчатая с овощами | F178: 150 | G178: 6.18 | H178: 6.23 | I178: 27.58 | J178: 191.07 | K178: 44
D179: гор.напиток | E179: Компот из чернослива | F179: 200 | G179: 0.44 | H179: 0.12 | I179: 32.66 | J179: 130.61 | K179: 303
D180: хлеб | E180: Хлеб пшеничный | F180: 40 | G180: 4.28 | H180: 1.8 | I180: 17.4 | J180: 109.6 | K180: 1
D181: фрукты
D182: закуска | E182: Винегрет | F182: 60 | G182: 1.25 | H182: 4.57 | I182: 7.26 | J182: 76.04 | K182: 60
D183: хлеб | E183: Хлеб ржаной | F183: 15 | G183: 0.85 | H183: 0.33 | I183: 4.83 | J183: 25.9 | K183: 1
D184: итого | F184: =SUM(F177:F183) -> 565 | G184: =SUM(G177:G183) -> 25.27 | H184: =SUM(H177:H183) -> 34.68 | I184: =SUM(I177:I183) -> 105 | J184: =SUM(J177:J183) -> 837.91
A185: =A177 -> 2 | B185: =B177 -> 10 | C185: Обед | D185: закуска
D186: 1 блюдо
D187: 2 блюдо
D188: гарнир
D189: напиток
D190: хлеб бел.
D191: хлеб черн.
D194: итого | F194: =SUM(F185:F193) -> 0 | G194: =SUM(G185:G193) -> 0 | H194: =SUM(H185:H193) -> 0 | I194: =SUM(I185:I193) -> 0 | J194: =SUM(J185:J193) -> 0
A195: =A177 -> 2 | B195: =B177 -> 10 | C195: Итого за день: | F195: =F184+F194 -> 565 | G195: =G184+G194 -> 25.27 | H195: =H184+H194 -> 34.68 | I195: =I184+I194 -> 105 | J195: =J184+J194 -> 837.91
A196: 3 | B196: 11 | C196: Завтрак | D196: гор.блюдо | E196: Фрикадельки мясные в соусе | F196: 100 | G196: 14.93 | H196: 23.82 | I196: 14.31 | J196: 332.510288 | K196: 288
D197: гарнир | E197: Макаронные изделия отварные | F197: 150 | G197: 4.66 | H197: 2.41 | I197: 28.93 | J197: 156.19 | K197: 331
D198: гор.напиток | E198: Чай с сахаром | F198: 200 | G198: 0.2 | H198: 0 | I198: 16.1 | J198: 65.1 | K198: 430
D199: хлеб | E199: Хлеб пшеничный | F199: 40 | G199: 4.28 | H199: 1.8 | I199: 17.4 | J199: 109.6 | K199: 1
D200: фрукты
D201: закуска | E201: Салат овощной | F201: 60 | G201: 1.52 | H201: 4.66 | I201: 9.72 | J201: 87.17 | K201: 28
D202: хлеб | E202: Хлеб ржаной | F202: 10 | G202: 0.85 | H202: 0.33 | I202: 4.83 | J202: 25.9 | K202: 1
D203: итого | F203: =SUM(F196:F202) -> 560 | G203: =SUM(G196:G202) -> 26.44 | H203: =SUM(H196:H202) -> 33.02 | I203: =SUM(I196:I202) -> 91.29 | J203: =SUM(J196:J202) -> 776.470288
A204: =A196 -> 3 | B204: =B196 -> 11 | C204: Обед | D204: закуска
D205: 1 блюдо
D206: 2 блюдо
D207: гарнир
D208: напиток
D209: хлеб бел.
D210: хлеб черн.
D213: итого | F213: =SUM(F204:F212) -> 0 | G213: =SUM(G204:G212) -> 0 | H213: =SUM(H204:H212) -> 0 | I213: =SUM(I204:I212) -> 0 | J213: =SUM(J204:J212) -> 0
A214: =A196 -> 3 | B214: =B196 -> 11 | C214: Итого за день: | F214: =F203+F213 -> 560 | G214: =G203+G213 -> 26.44 | H214: =H203+H213 -> 33.02 | I214: =I203+I213 -> 91.29 | J214: =J203+J213 -> 776.470288
A215: 3 | B215: 12 | C215: Завтрак | D215: гор.блюдо | E215: Шницель рыбный натуральный | F215: 100 | G215: 27.48 | H215: 10.17 | I215: 11.55 | J215: 245.36 | K215: 258
D216: гарнир | E216: Пюре картофельное | F216: 150 | G216: 4.16 | H216: 4.59 | I216: 28.15 | J216: 169.87 | K216: 335
D217: гор.напиток | E217: Напиок апельсиновый или лимонный | F217: 200 | G217: 0.18 | H217: 0.05 | I217: 16.7 | J217: 77 | K217: 295
D218: хлеб | E218: Хлеб пшеничный | F218: 40 | G218: 4.28 | H218: 1.8 | I218: 17.4 | J218: 109.6 | K218: 1
D219: фрукты
D220: закуска | E220: Огурец свежий | F220: 60 | G220: 0 | H220: 0.06 | I220: 1.8 | J220: 9.65 | K220: 22
D221: хлеб | E221: Хлеб ржаной | F221: 10 | G221: 0.85 | H221: 0.33 | I221: 4.83 | J221: 25.9 | K221: 1
D222: итого | F222: =SUM(F215:F221) -> 560 | G222: =SUM(G215:G221) -> 36.95 | H222: =SUM(H215:H221) -> 17 | I222: =SUM(I215:I221) -> 80.43 | J222: =SUM(J215:J221) -> 637.38
... 146 more rows
